[Event "56th Biel Festival Rapid 2023"]
[Site "Biel"]
[Date "2024.04.13"]
[Round "6"]
[White "Toenz, Arthur"]
[Black "Ragios, Konstantinos"]
[Result "*"]
[WhiteElo "2040"]
[BlackElo "1925"]
[PlyCount "33"]
[EventDate "2023.07.16"]
[EventType "swiss"]
[EventCountry "SUI"]
[TimeControl "900+5"]

1. d4 {[%emt 0:00:03]} e6 {[%emt 0:00:02]} 2. Bf4 {[%emt 0:00:02]} Nf6 {[%emt 0:00:04]} 3. e3 {[%emt 0:00:02]} b6 {[%emt 0:00:23]} 4. Qf3 {[%emt 0:00:02]} Nc6 {[%emt 0:00:19]} 5. Nc3 {[%emt 0:00:03]} Bb7 {[%emt 0:00:12]} 6. O-O-O {[%emt 0:00:05]} a6 {[%emt 0:01:07]} 7. e4 {[%emt 0:00:17]} Ne7 {[%emt 0:00:23]} 8. g4 {[%emt 0:01:12]} Ng6 {[%emt 0:00:38]} 9. h4 {[%emt 0:02:23]} Nxf4 {[%emt 0:02:59]} 10. Qxf4 {[%emt 0:00:02]} Bb4 {[%emt 0:00:54]} 11. Nge2 {[%emt 0:00:16]} Bd6 {[%emt 0:01:15]} 12. Qf3 {[%emt 0:00:23]} e5 {[%emt 0:00:02]} 13. g5 {[%emt 0:00:39]} Ng8 {[%emt 0:00:48]} 14. d5 {[%emt 0:00:15]} Qe7 {[%emt 0:00:21]} 15. Ng3 {[%emt 0:00:30]} g6 {[%emt 0:00:05]} 16. Kb1 {[%emt 0:00:24]} h6 {[%emt 0:00:23]} 17. gxh6 {[%emt 0:00:17]} *

[Event "56th Biel Festival Rapid 2023"]
[Site "Biel"]
[Date "2024.04.13"]
[Round "6"]
[White "Pheng, Wissam"]
[Black "Zenker, Ulrich"]
[Result "*"]
[WhiteElo "1940"]
[BlackElo "2156"]
[PlyCount "28"]
[EventDate "2023.07.16"]
[EventType "swiss"]
[EventCountry "SUI"]
[TimeControl "900+5"]

1. e4 {[%emt 0:00:03]} e6 {[%emt 0:00:03]} 2. b3 {[%emt 0:00:01]} d5 {[%emt 0:00:06]} 3. Bb2 {[%emt 0:00:02]} Nf6 {[%emt 0:00:36]} 4. e5 {[%emt 0:00:01]} Nfd7 {[%emt 0:00:08]} 5. f4 {[%emt 0:00:11]} c5 {[%emt 0:00:03]} 6. Qg4 {[%emt 0:00:02]} Nc6 {[%emt 0:00:15]} 7. Nf3 {[%emt 0:00:02]} Nb6 {[%emt 0:02:09]} 8. Bb5 {[%emt 0:01:31]} Bd7 {[%emt 0:00:29]} 9. a4 {[%emt 0:01:00]} Nb4 {[%emt 0:02:23]} 10. Na3 {[%emt 0:00:38]} Bxb5 {[%emt 0:01:21]} 11. axb5 {[%emt 0:00:04]} Qd7 {[%emt 0:00:30]} 12. O-O {[%emt 0:00:30]} O-O-O {[%emt 0:00:53]} 13. d3 {[%emt 0:01:37]} h6 {[%emt 0:00:23]} 14. Rfd1 {[%emt 0:01:21]} d4 {[%emt 0:00:14]} *

[Event "56th Biel Festival Rapid 2023"]
[Site "Biel"]
[Date "2024.04.13"]
[Round "6"]
[White "Chobaut, Nicolas"]
[Black "Dergatschova, Anna"]
[Result "*"]
[WhiteElo "1919"]
[BlackElo "2120"]
[PlyCount "30"]
[EventDate "2023.07.16"]
[EventType "swiss"]
[EventCountry "SUI"]
[TimeControl "900+5"]

1. c4 {[%emt 0:00:07]} Nc6 {[%emt 0:00:11]} 2. g3 {[%emt 0:00:14]} e5 {[%emt 0:00:05]} 3. Bg2 {[%emt 0:00:03]} Nf6 {[%emt 0:00:06]} 4. Nf3 {[%emt 0:00:32]} Bc5 {[%emt 0:00:20]} 5. O-O {[%emt 0:00:11]} O-O {[%emt 0:00:04]} 6. Nxe5 {[%emt 0:01:28]} Bxf2+ {[%emt 0:00:17]} 7. Rxf2 {[%emt 0:00:02]} Nxe5 {[%emt 0:00:05]} 8. d3 {[%emt 0:00:45]} h6 {[%emt 0:00:09]} 9. Nc3 {[%emt 0:00:39]} c6 {[%emt 0:00:02]} 10. Bf4 {[%emt 0:03:11]} Neg4 {[%emt 0:00:40]} 11. Rf1 {[%emt 0:00:06]} Qb6+ {[%emt 0:00:08]} 12. d4 {[%emt 0:00:26]} Qxb2 {[%emt 0:00:09]} 13. Qd3 {[%emt 0:00:05]} b5 {[%emt 0:01:19]} 14. h3 {[%emt 0:01:01]} Re8 {[%emt 0:00:22]} 15. cxb5 {[%emt 0:01:28]} Qa3 {[%emt 0:02:24]} *

[Event "56th Biel Festival Rapid 2023"]
[Site "Biel"]
[Date "2024.04.13"]
[Round "6"]
[White "Paholok, Igor"]
[Black "Tcheau, Alain"]
[Result "*"]
[WhiteElo "1710"]
[BlackElo "1985"]
[PlyCount "46"]
[EventDate "2023.07.16"]
[EventType "swiss"]
[EventCountry "SUI"]
[TimeControl "900+5"]

1. d4 {[%emt 0:00:03]} d5 {[%emt 0:00:06]} 2. Nf3 {[%emt 0:00:06]} e6 {[%emt 0:00:01]} 3. e3 {[%emt 0:00:01]} Nc6 {[%emt 0:00:02]} 4. Bd3 {[%emt 0:00:00]} Nf6 {[%emt 0:00:02]} 5. c3 {[%emt 0:00:01]} Bd6 {[%emt 0:00:02]} 6. Nbd2 {[%emt 0:00:01]} Bd7 {[%emt 0:00:01]} 7. O-O {[%emt 0:00:06]} Qe7 {[%emt 0:00:01]} 8. b4 {[%emt 0:00:07]} O-O-O {[%emt 0:00:06]} 9. b5 {[%emt 0:00:12]} Na5 {[%emt 0:00:05]} 10. Nb3 {[%emt 0:00:08]} Nc4 {[%emt 0:00:20]} 11. a4 {[%emt 0:00:27]} e5 {[%emt 0:00:30]} 12. Bxc4 {[%emt 0:00:18]} dxc4 {[%emt 0:00:02]} 13. dxe5 {[%emt 0:01:43]} Bxe5 {[%emt 0:00:12]} 14. Ba3 {[%emt 0:02:02]} Bd6 {[%emt 0:00:44]} 15. Bxd6 {[%emt 0:00:17]} cxd6 {[%emt 0:00:31]} 16. Na5 {[%emt 0:00:30]} d5 {[%emt 0:00:40]} 17. Qd4 {[%emt 0:03:24]} b6 {[%emt 0:00:42]} 18. Nc6 {[%emt 0:00:09]} Bxc6 {[%emt 0:00:02]} 19. bxc6 {[%emt 0:00:04]} Qc5 {[%emt 0:00:34]} 20. Ne5 {[%emt 0:00:41]} Qxd4 {[%emt 0:00:04]} 21. exd4 {[%emt 0:00:03]} Rhf8 {[%emt 0:00:17]} 22. a5 {[%emt 0:00:11]} b5 {[%emt 0:00:34]} 23. a6 {[%emt 0:00:02]} Ne4 {[%emt 0:00:34]} *

[Event "56th Biel Festival Rapid 2023"]
[Site "Biel"]
[Date "2024.04.13"]
[Round "6.1"]
[White "Quesada Perez, Luis Ernesto"]
[Black "Bharath Subramaniyam H"]
[Result "*"]
[WhiteElo "2553"]
[BlackElo "2488"]
[PlyCount "56"]
[EventDate "2023.07.16"]
[EventType "swiss"]
[EventCountry "SUI"]
[TimeControl "900+5"]

1. d4 {[%emt 0:00:04]} Nf6 {[%emt 0:00:02]} 2. c4 {[%emt 0:00:02]} e6 {[%emt 0:00:01]} 3. Nf3 {[%emt 0:00:02]} Bb4+ {[%emt 0:00:01]} 4. Bd2 {[%emt 0:00:03]} c5 {[%emt 0:00:04]} 5. g3 {[%emt 0:00:11]} b6 {[%emt 0:00:08]} 6. Bg2 {[%emt 0:00:02]} Bb7 {[%emt 0:00:02]} 7. Bxb4 {[%emt 0:00:18]} cxb4 {[%emt 0:00:01]} 8. O-O {[%emt 0:00:17]} O-O {[%emt 0:00:10]} 9. a3 {[%emt 0:00:03]} Qe7 {[%emt 0:00:16]} 10. e3 {[%emt 0:02:23]} a5 {[%emt 0:00:25]} 11. Nbd2 {[%emt 0:00:13]} Na6 {[%emt 0:00:08]} 12. Qe2 {[%emt 0:00:03]} d6 {[%emt 0:00:12]} 13. e4 {[%emt 0:00:57]} e5 {[%emt 0:00:13]} 14. Qe3 {[%emt 0:00:34]} Ng4 {[%emt 0:02:21]} 15. Qe2 {[%emt 0:00:17]} g6 {[%emt 0:00:28]} 16. Rfe1 {[%emt 0:00:53]} Rae8 {[%emt 0:01:08]} 17. h3 {[%emt 0:00:29]} Nf6 {[%emt 0:00:02]} 18. Rad1 {[%emt 0:00:41]} Kg7 {[%emt 0:00:40]} 19. Qe3 {[%emt 0:00:10]} Qc7 {[%emt 0:01:03]} 20. Nh4 {[%emt 0:00:39]} Bc8 {[%emt 0:00:51]} 21. Nf5+ {[%emt 0:02:24]} Bxf5 {[%emt 0:00:55]} 22. exf5 {[%emt 0:00:02]} exd4 {[%emt 0:04:31]} 23. Qxd4 {[%emt 0:00:47]} Qc5 {[%emt 0:00:05]} 24. Qxc5 {[%emt 0:00:14]} Nxc5 {[%emt 0:01:16]} 25. fxg6 {[%emt 0:00:05]} hxg6 {[%emt 0:00:04]} 26. axb4 {[%emt 0:00:24]} axb4 {[%emt 0:00:03]} 27. Nf1 {[%emt 0:00:15]} Na4 {[%emt 0:01:08]} 28. Rxe8 {[%emt 0:00:09]} Rxe8 {[%emt 0:00:10]} *

[Event "56th Biel Festival Rapid 2023"]
[Site "Biel"]
[Date "2024.04.13"]
[Round "6.3"]
[White "Huston, Gus"]
[Black "Materia, Marco"]
[Result "*"]
[WhiteElo "2341"]
[BlackElo "2436"]
[PlyCount "113"]
[EventDate "2023.07.16"]
[EventType "swiss"]
[EventCountry "SUI"]
[TimeControl "900+5"]

1. e4 {[%emt 0:00:03]} c5 {[%emt 0:00:01]} 2. Nf3 {[%emt 0:00:01]} e6 {[%emt 0:00:01]} 3. c3 {[%emt 0:00:01]} d5 {[%emt 0:00:02]} 4. exd5 {[%emt 0:00:01]} Qxd5 {[%emt 0:00:02]} 5. d4 {[%emt 0:00:00]} Nf6 {[%emt 0:00:01]} 6. Na3 {[%emt 0:00:05]} Nc6 {[%emt 0:00:03]} 7. Be3 {[%emt 0:00:00]} cxd4 {[%emt 0:00:06]} 8. Nb5 {[%emt 0:00:00]} Qd7 {[%emt 0:00:06]} 9. Nbxd4 {[%emt 0:00:02]} Bd6 {[%emt 0:00:00]} 10. Nb5 {[%emt 0:00:42]} Bb8 {[%emt 0:00:00]} 11. Qxd7+ {[%emt 0:00:43]} Bxd7 {[%emt 0:00:01]} 12. O-O-O {[%emt 0:00:02]} Ng4 {[%emt 0:01:07]} 13. Nd6+ {[%emt 0:00:22]} Bxd6 {[%emt 0:00:05]} 14. Rxd6 {[%emt 0:00:02]} Nxe3 {[%emt 0:00:02]} 15. fxe3 {[%emt 0:00:02]} Ke7 {[%emt 0:00:11]} 16. Rd2 {[%emt 0:00:01]} Rhd8 {[%emt 0:00:29]} 17. Be2 {[%emt 0:00:26]} Be8 {[%emt 0:00:08]} 18. h4 {[%emt 0:00:13]} Rxd2 {[%emt 0:00:10]} 19. Kxd2 {[%emt 0:00:02]} Rd8+ {[%emt 0:00:01]} 20. Kc2 {[%emt 0:00:01]} f6 {[%emt 0:00:11]} 21. Bd3 {[%emt 0:00:01]} h6 {[%emt 0:00:58]} 22. g4 {[%emt 0:00:12]} Bf7 {[%emt 0:02:16]} 23. b4 {[%emt 0:01:17]} e5 {[%emt 0:00:15]} 24. a4 {[%emt 0:00:04]} Bd5 {[%emt 0:00:43]} 25. e4 {[%emt 0:00:01]} Bb3+ {[%emt 0:00:12]} 26. Kxb3 {[%emt 0:00:02]} Rxd3 {[%emt 0:00:01]} 27. Rf1 {[%emt 0:00:18]} Re3 {[%emt 0:00:23]} 28. Nd2 {[%emt 0:00:40]} Rg3 {[%emt 0:00:06]} 29. h5 {[%emt 0:00:21]} Rxg4 {[%emt 0:00:06]} 30. a5 {[%emt 0:00:12]} Rh4 {[%emt 0:00:16]} 31. Rg1 {[%emt 0:00:17]} Kf8 {[%emt 0:00:05]} 32. Nc4 {[%emt 0:00:19]} Rxh5 {[%emt 0:00:17]} 33. Nd6 {[%emt 0:00:18]} Rg5 {[%emt 0:00:26]} 34. Rd1 {[%emt 0:00:09]} Nd8 {[%emt 0:00:34]} 35. Nc8 {[%emt 0:00:01]} Ke8 {[%emt 0:00:31]} 36. Nd6+ {[%emt 0:00:18]} Kf8 {[%emt 0:00:05]} 37. Nc8 {[%emt 0:00:01]} Ne6 {[%emt 0:00:28]} 38. Nxa7 {[%emt 0:00:17]} h5 {[%emt 0:00:05]} 39. Nb5 {[%emt 0:00:21]} h4 {[%emt 0:00:04]} 40. Rh1 {[%emt 0:00:14]} Rh5 {[%emt 0:00:09]} 41. Nd6 {[%emt 0:00:02]} g5 {[%emt 0:00:30]} 42. Nxb7 {[%emt 0:00:05]} g4 {[%emt 0:00:04]} 43. a6 {[%emt 0:01:40]} Nc7 {[%emt 0:00:27]} 44. a7 {[%emt 0:00:03]} Ke7 {[%emt 0:00:09]} 45. b5 {[%emt 0:00:41]} g3 {[%emt 0:00:27]} 46. b6 {[%emt 0:00:01]} Na8 {[%emt 0:00:01]} 47. Nd6 {[%emt 0:00:01]} g2 {[%emt 0:00:26]} 48. Nc8+ {[%emt 0:00:39]} Kf7 {[%emt 0:01:13]} 49. Rg1 {[%emt 0:00:13]} h3 {[%emt 0:00:44]} 50. b7 {[%emt 0:00:03]} h2 {[%emt 0:00:02]} 51. Rxg2 {[%emt 0:00:18]} h1=Q {[%emt 0:00:04]} 52. bxa8=Q {[%emt 0:00:04]} Qxg2 {[%emt 0:01:23]} 53. Qd5+ {[%emt 0:00:02]} Kg7 {[%emt 0:00:03]} 54. a8=Q {[%emt 0:00:38]} Rh2 {[%emt 0:00:06]} 55. Qa7+ {[%emt 0:00:19]} Kh6 {[%emt 0:00:16]} 56. Qe3+ {[%emt 0:00:06]} Kg7 {[%emt 0:00:15]} 57. Qd7+ {[%emt 0:00:06]} *

[Event "56th Biel Festival Rapid 2023"]
[Site "Biel"]
[Date "2024.04.13"]
[Round "6.4"]
[White "Yuffa, Daniil"]
[Black "Ouellet, Maili-Jade"]
[Result "*"]
[WhiteElo "2603"]
[BlackElo "2201"]
[PlyCount "62"]
[EventDate "2023.07.16"]
[EventType "swiss"]
[EventCountry "SUI"]
[TimeControl "900+5"]

1. Nf3 {[%emt 0:00:05]} d5 {[%emt 0:00:02]} 2. g3 {[%emt 0:00:03]} Nf6 {[%emt 0:00:02]} 3. Bg2 {[%emt 0:00:03]} e6 {[%emt 0:00:06]} 4. c4 {[%emt 0:00:07]} Be7 {[%emt 0:00:03]} 5. d4 {[%emt 0:00:02]} O-O {[%emt 0:00:03]} 6. Qc2 {[%emt 0:00:01]} c5 {[%emt 0:00:05]} 7. dxc5 {[%emt 0:00:02]} Qa5+ {[%emt 0:00:16]} 8. Nbd2 {[%emt 0:00:07]} Qxc5 {[%emt 0:00:06]} 9. a3 {[%emt 0:00:02]} Qc7 {[%emt 0:00:45]} 10. b4 {[%emt 0:00:36]} Nbd7 {[%emt 0:00:42]} 11. O-O {[%emt 0:00:15]} b6 {[%emt 0:00:32]} 12. Bb2 {[%emt 0:00:27]} Ba6 {[%emt 0:00:29]} 13. Nd4 {[%emt 0:00:51]} Rac8 {[%emt 0:00:27]} 14. b5 {[%emt 0:00:28]} Bb7 {[%emt 0:00:02]} 15. Rfc1 {[%emt 0:00:42]} Qb8 {[%emt 0:00:53]} 16. Qd1 {[%emt 0:01:47]} Ne5 {[%emt 0:00:29]} 17. cxd5 {[%emt 0:00:22]} Nxd5 {[%emt 0:00:22]} 18. Qa4 {[%emt 0:00:53]} Rfd8 {[%emt 0:04:26]} 19. N2b3 {[%emt 0:00:59]} Bf6 {[%emt 0:00:17]} 20. Nc6 {[%emt 0:01:21]} Bxc6 {[%emt 0:00:15]} 21. bxc6 {[%emt 0:00:03]} Nf3+ {[%emt 0:00:10]} 22. Bxf3 {[%emt 0:00:10]} Bxb2 {[%emt 0:00:02]} 23. Rab1 {[%emt 0:00:51]} Bxc1 {[%emt 0:00:04]} 24. Rxc1 {[%emt 0:00:01]} b5 {[%emt 0:00:47]} 25. Qa6 {[%emt 0:01:26]} Qb6 {[%emt 0:00:15]} 26. Qxb6 {[%emt 0:00:03]} Nxb6 {[%emt 0:00:10]} 27. Nc5 {[%emt 0:00:59]} Kf8 {[%emt 0:00:53]} 28. c7 {[%emt 0:00:42]} Rd5 {[%emt 0:01:03]} 29. Bxd5 {[%emt 0:00:40]} Nxd5 {[%emt 0:00:19]} 30. Na6 {[%emt 0:01:01]} Ke7 {[%emt 0:00:03]} 31. e4 {[%emt 0:00:32]} Nf6 {[%emt 0:00:09]} *

[Event "56th Biel Festival Rapid 2023"]
[Site "Biel"]
[Date "2024.04.13"]
[Round "6.5"]
[White "Habibi, Ali"]
[Black "Riff, Jean-Noel"]
[Result "*"]
[WhiteElo "2171"]
[BlackElo "2401"]
[PlyCount "30"]
[EventDate "2023.07.16"]
[EventType "swiss"]
[EventCountry "SUI"]
[TimeControl "900+5"]

1. Nf3 {[%emt 0:00:00]} Nf6 {[%emt 0:00:04]} 2. g3 {[%emt 0:00:06]} d5 {[%emt 0:00:03]} 3. Bg2 {[%emt 0:00:02]} e6 {[%emt 0:00:02]} 4. O-O {[%emt 0:00:01]} Be7 {[%emt 0:00:04]} 5. d3 {[%emt 0:00:02]} c5 {[%emt 0:00:03]} 6. Nbd2 {[%emt 0:00:01]} Nc6 {[%emt 0:00:06]} 7. e4 {[%emt 0:00:02]} b6 {[%emt 0:00:05]} 8. Re1 {[%emt 0:00:06]} Bb7 {[%emt 0:00:09]} 9. a3 {[%emt 0:00:02]} Qc7 {[%emt 0:00:14]} 10. c3 {[%emt 0:00:08]} O-O {[%emt 0:00:17]} 11. e5 {[%emt 0:00:21]} Nd7 {[%emt 0:00:12]} 12. d4 {[%emt 0:00:03]} cxd4 {[%emt 0:00:04]} 13. Nf1 {[%emt 0:00:05]} Rfe8 {[%emt 0:00:10]} 14. Ne3 {[%emt 0:00:12]} Nf8 {[%emt 0:00:40]} 15. Bf1 {[%emt 0:00:00]} Rec8 {[%emt 0:00:34]} *

[Event "56th Biel Festival Rapid 2023"]
[Site "Biel"]
[Date "2024.04.13"]
[Round "6.6"]
[White "Angst, Robin"]
[Black "Saraci, Nderim"]
[Result "*"]
[WhiteElo "2215"]
[BlackElo "2472"]
[PlyCount "33"]
[EventDate "2023.07.16"]
[EventType "swiss"]
[EventCountry "SUI"]
[TimeControl "900+5"]

1. e4 {[%emt 0:00:03]} e5 {[%emt 0:00:02]} 2. Nc3 {[%emt 0:00:02]} Bc5 {[%emt 0:00:02]} 3. Bc4 {[%emt 0:00:06]} d6 {[%emt 0:00:03]} 4. d3 {[%emt 0:00:03]} Be6 {[%emt 0:00:04]} 5. Bxe6 {[%emt 0:01:20]} fxe6 {[%emt 0:00:02]} 6. Na4 {[%emt 0:01:22]} Bb6 {[%emt 0:00:29]} 7. Nxb6 {[%emt 0:00:09]} axb6 {[%emt 0:00:02]} 8. f4 {[%emt 0:00:58]} exf4 {[%emt 0:00:09]} 9. Bxf4 {[%emt 0:00:02]} e5 {[%emt 0:00:09]} 10. Bd2 {[%emt 0:00:41]} Nf6 {[%emt 0:00:03]} 11. Nf3 {[%emt 0:00:06]} Nc6 {[%emt 0:00:04]} 12. c3 {[%emt 0:00:16]} Qd7 {[%emt 0:00:15]} 13. O-O {[%emt 0:00:11]} O-O {[%emt 0:00:13]} 14. Qb3+ {[%emt 0:00:24]} Qf7 {[%emt 0:00:11]} 15. Ng5 {[%emt 0:00:45]} Rfe8 {[%emt 0:01:57]} 16. Nf3 {[%emt 0:01:45]} h6 {[%emt 0:00:40]} 17. h3 {[%emt 0:00:06]} *

[Event "56th Biel Festival Rapid 2023"]
[Site "Biel"]
[Date "2024.04.13"]
[Round "6.7"]
[White "Huang, Renjie"]
[Black "Illijin Neboisa"]
[Result "1-0"]
[WhiteElo "2445"]
[BlackElo "2140"]
[PlyCount "81"]
[EventDate "2023.07.16"]
[EventType "swiss"]
[EventCountry "SUI"]
[TimeControl "900+5"]

1. e4 {[%emt 0:00:03]} c5 {[%emt 0:00:02]} 2. Nf3 {[%emt 0:00:01]} e6 {[%emt 0:00:05]} 3. g3 {[%emt 0:00:02]} Nc6 {[%emt 0:00:09]} 4. Bg2 {[%emt 0:00:02]} Nf6 {[%emt 0:00:09]} 5. Nc3 {[%emt 0:00:02]} d6 {[%emt 0:00:11]} 6. O-O {[%emt 0:00:04]} Bd7 {[%emt 0:00:26]} 7. d4 {[%emt 0:00:11]} cxd4 {[%emt 0:00:03]} 8. Nxd4 {[%emt 0:00:02]} a6 {[%emt 0:00:05]} 9. Kh1 {[%emt 0:00:39]} Be7 {[%emt 0:00:15]} 10. f4 {[%emt 0:00:02]} Qc7 {[%emt 0:00:01]} 11. Be3 {[%emt 0:00:08]} O-O {[%emt 0:00:11]} 12. Nxc6 {[%emt 0:00:27]} Bxc6 {[%emt 0:00:04]} 13. g4 {[%emt 0:00:02]} b5 {[%emt 0:05:10]} 14. g5 {[%emt 0:00:01]} Nd7 {[%emt 0:00:02]} 15. f5 {[%emt 0:01:01]} b4 {[%emt 0:01:13]} 16. Ne2 {[%emt 0:00:04]} exf5 {[%emt 0:01:13]} 17. Rxf5 {[%emt 0:00:01]} Qb7 {[%emt 0:00:54]} 18. Ng3 {[%emt 0:00:14]} Ne5 {[%emt 0:00:13]} 19. Rf2 {[%emt 0:00:39]} g6 {[%emt 0:01:11]} 20. h4 {[%emt 0:00:02]} Rad8 {[%emt 0:00:20]} 21. Bd4 {[%emt 0:00:09]} f6 {[%emt 0:00:38]} 22. gxf6 {[%emt 0:00:47]} Bxf6 {[%emt 0:00:04]} 23. Rxf6 {[%emt 0:00:10]} Rxf6 {[%emt 0:00:01]} 24. Bxe5 {[%emt 0:00:02]} Re6 {[%emt 0:00:28]} 25. Bf4 {[%emt 0:00:17]} Rf8 {[%emt 0:00:15]} 26. Bh6 {[%emt 0:00:07]} Rfe8 {[%emt 0:01:10]} 27. Bg5 {[%emt 0:00:45]} Qg7 {[%emt 0:00:21]} 28. Qc1 {[%emt 0:00:49]} Qe5 {[%emt 0:00:18]} 29. Kh2 {[%emt 0:00:03]} a5 {[%emt 0:00:20]} 30. c3 {[%emt 0:00:04]} bxc3 {[%emt 0:00:26]} 31. Qxc3 {[%emt 0:00:07]} Qxc3 {[%emt 0:00:02]} 32. bxc3 {[%emt 0:00:05]} Rb8 {[%emt 0:00:10]} 33. Rd1 {[%emt 0:00:37]} Kg7 {[%emt 0:00:20]} 34. Bh3 {[%emt 0:00:18]} Rb2+ {[%emt 0:00:08]} 35. Kg1 {[%emt 0:00:05]} Re8 {[%emt 0:00:21]} 36. Rxd6 {[%emt 0:00:26]} Bxe4 {[%emt 0:00:03]} 37. Rd7+ {[%emt 0:00:07]} Kg8 {[%emt 0:00:04]} 38. Bf1 {[%emt 0:00:15]} Rb1 {[%emt 0:00:26]} 39. Kh2 {[%emt 0:00:16]} Rb2+ {[%emt 0:00:04]} 40. Kh3 {[%emt 0:00:09]} Rc8 {[%emt 0:00:22]} 41. Nxe4 {[%emt 0:00:06]} 1-0

[Event "56th Biel Festival Rapid 2023"]
[Site "Biel"]
[Date "2024.04.13"]
[Round "6.8"]
[White "Vantika Agrawal"]
[Black "Harikrishnan.A.Ra"]
[Result "*"]
[WhiteElo "2428"]
[BlackElo "2406"]
[PlyCount "53"]
[EventDate "2023.07.16"]
[EventType "swiss"]
[EventCountry "SUI"]
[TimeControl "900+5"]

1. d4 {[%emt 0:00:03]} d5 {[%emt 0:00:02]} 2. c4 {[%emt 0:00:02]} c6 {[%emt 0:00:02]} 3. Nf3 {[%emt 0:00:01]} Nf6 {[%emt 0:00:02]} 4. e3 {[%emt 0:00:02]} Bf5 {[%emt 0:00:29]} 5. Nc3 {[%emt 0:00:01]} e6 {[%emt 0:00:02]} 6. Nh4 {[%emt 0:00:02]} Be4 {[%emt 0:00:01]} 7. f3 {[%emt 0:00:01]} Bg6 {[%emt 0:00:02]} 8. Qb3 {[%emt 0:00:01]} Qc7 {[%emt 0:00:02]} 9. Bd2 {[%emt 0:00:01]} a5 {[%emt 0:00:05]} 10. Rc1 {[%emt 0:00:40]} Be7 {[%emt 0:00:32]} 11. cxd5 {[%emt 0:00:20]} Nxd5 {[%emt 0:00:59]} 12. Nxg6 {[%emt 0:00:03]} hxg6 {[%emt 0:00:02]} 13. Na4 {[%emt 0:04:56]} Nd7 {[%emt 0:02:08]} 14. e4 {[%emt 0:00:11]} N5f6 {[%emt 0:00:46]} 15. g3 {[%emt 0:00:38]} Qb8 {[%emt 0:01:54]} 16. Kf2 {[%emt 0:04:23]} b5 {[%emt 0:00:39]} 17. Nc3 {[%emt 0:00:03]} e5 {[%emt 0:00:26]} 18. d5 {[%emt 0:01:25]} a4 {[%emt 0:00:33]} 19. Qc2 {[%emt 0:00:02]} cxd5 {[%emt 0:00:52]} 20. Nxd5 {[%emt 0:00:07]} Nxd5 {[%emt 0:00:04]} 21. exd5 {[%emt 0:00:01]} O-O {[%emt 0:00:35]} 22. Qc6 {[%emt 0:00:17]} Nf6 {[%emt 0:00:23]} 23. Qxb5 {[%emt 0:01:14]} e4 {[%emt 0:01:37]} 24. Qxb8 {[%emt 0:00:45]} Raxb8 {[%emt 0:00:03]} 25. Rc2 {[%emt 0:00:10]} exf3 {[%emt 0:01:47]} 26. Kxf3 {[%emt 0:00:03]} Nxd5 {[%emt 0:00:01]} 27. Bc4 {[%emt 0:00:09]} *

[Event "56th Biel Festival Rapid 2023"]
[Site "Biel"]
[Date "2024.04.13"]
[Round "6.9"]
[White "Rasovic, Dragan"]
[Black "Erdos, Viktor"]
[Result "*"]
[WhiteElo "2069"]
[BlackElo "2571"]
[PlyCount "56"]
[EventDate "2023.07.16"]
[EventType "swiss"]
[EventCountry "SUI"]
[TimeControl "900+5"]

1. d4 {[%emt 0:00:05]} Nf6 {[%emt 0:00:05]} 2. Nf3 {[%emt 0:00:06]} g6 {[%emt 0:00:02]} 3. g3 {[%emt 0:00:09]} Bg7 {[%emt 0:00:07]} 4. Bg2 {[%emt 0:00:03]} O-O {[%emt 0:00:02]} 5. O-O {[%emt 0:00:05]} d5 {[%emt 0:00:03]} 6. b3 {[%emt 0:00:07]} c5 {[%emt 0:01:08]} 7. Bb2 {[%emt 0:00:01]} cxd4 {[%emt 0:00:14]} 8. Nxd4 {[%emt 0:00:03]} e5 {[%emt 0:00:09]} 9. Nf3 {[%emt 0:00:02]} e4 {[%emt 0:00:13]} 10. Nd4 {[%emt 0:00:02]} e3 {[%emt 0:00:01]} 11. f3 {[%emt 0:00:12]} Re8 {[%emt 0:00:30]} 12. Na3 {[%emt 0:00:27]} h5 {[%emt 0:00:25]} 13. c3 {[%emt 0:02:12]} h4 {[%emt 0:00:07]} 14. g4 {[%emt 0:00:42]} h3 {[%emt 0:00:31]} 15. Bxh3 {[%emt 0:00:08]} Nh5 {[%emt 0:00:18]} 16. Bg2 {[%emt 0:00:02]} Nf4 {[%emt 0:00:24]} 17. Nac2 {[%emt 0:00:14]} Be5 {[%emt 0:00:42]} 18. Qe1 {[%emt 0:01:52]} Nc6 {[%emt 0:02:31]} 19. Rd1 {[%emt 0:01:45]} Nxd4 {[%emt 0:00:30]} 20. cxd4 {[%emt 0:00:20]} Bc7 {[%emt 0:00:05]} 21. Bc1 {[%emt 0:00:12]} Qd6 {[%emt 0:00:17]} 22. Qh4 {[%emt 0:00:34]} Kg7 {[%emt 0:01:48]} 23. Bxe3 {[%emt 0:03:16]} Nxe2+ {[%emt 0:00:53]} 24. Kf2 {[%emt 0:01:30]} Rh8 {[%emt 0:00:28]} 25. Qxh8+ {[%emt 0:00:03]} Kxh8 {[%emt 0:00:47]} 26. Kxe2 {[%emt 0:00:01]} Kg7 {[%emt 0:00:02]} 27. h3 {[%emt 0:00:12]} Bd7 {[%emt 0:01:08]} 28. Kd2 {[%emt 0:00:07]} Rc8 {[%emt 0:00:41]} *

[Event "56th Biel Festival Rapid 2023"]
[Site "Biel"]
[Date "2024.04.13"]
[Round "6.10"]
[White "Ristevski, Sasko"]
[Black "Haimovich, Tal"]
[Result "*"]
[WhiteElo "1925"]
[BlackElo "2374"]
[PlyCount "57"]
[EventDate "2023.07.16"]
[EventType "swiss"]
[EventCountry "SUI"]
[TimeControl "900+5"]

1. d4 {[%emt 0:00:06]} Nf6 {[%emt 0:00:02]} 2. Nf3 {[%emt 0:00:02]} e6 {[%emt 0:00:02]} 3. e3 {[%emt 0:00:04]} b6 {[%emt 0:00:02]} 4. Bd3 {[%emt 0:00:21]} Bb7 {[%emt 0:00:02]} 5. O-O {[%emt 0:00:03]} c5 {[%emt 0:00:08]} 6. b3 {[%emt 0:00:16]} cxd4 {[%emt 0:00:12]} 7. exd4 {[%emt 0:00:03]} Be7 {[%emt 0:00:05]} 8. Bb2 {[%emt 0:00:50]} O-O {[%emt 0:00:07]} 9. Qe2 {[%emt 0:00:08]} d5 {[%emt 0:00:35]} 10. Nbd2 {[%emt 0:00:15]} Nc6 {[%emt 0:00:27]} 11. a3 {[%emt 0:00:09]} Rc8 {[%emt 0:00:18]} 12. Rfd1 {[%emt 0:00:54]} Nd7 {[%emt 0:00:42]} 13. Rac1 {[%emt 0:00:30]} Bf6 {[%emt 0:00:26]} 14. Nf1 {[%emt 0:00:15]} Nc5 {[%emt 0:00:57]} 15. Bb5 {[%emt 0:01:36]} Ne4 {[%emt 0:00:04]} 16. Ng3 {[%emt 0:00:27]} Nd6 {[%emt 0:01:52]} 17. Bd3 {[%emt 0:00:09]} g6 {[%emt 0:00:02]} 18. Ne5 {[%emt 0:01:11]} Bg7 {[%emt 0:00:10]} 19. h3 {[%emt 0:01:48]} Ne7 {[%emt 0:00:31]} 20. a4 {[%emt 0:00:42]} h5 {[%emt 0:01:44]} 21. Ba3 {[%emt 0:00:49]} h4 {[%emt 0:01:30]} 22. Nf1 {[%emt 0:00:58]} Nef5 {[%emt 0:00:18]} 23. Bb2 {[%emt 0:00:25]} Ne4 {[%emt 0:00:42]} 24. c3 {[%emt 0:01:02]} Rc7 {[%emt 0:00:37]} 25. Ne3 {[%emt 0:00:10]} Qg5 {[%emt 0:01:19]} 26. Nxf5 {[%emt 0:00:35]} exf5 {[%emt 0:00:14]} 27. Bxe4 {[%emt 0:00:41]} fxe4 {[%emt 0:00:22]} 28. c4 {[%emt 0:01:16]} Rfc8 {[%emt 0:00:24]} 29. Ng4 {[%emt 0:00:44]} *